[Event "Titled Tuesday Blitz March 28 Late 2023"]
[White "Thomforde-Toates, Noah"]
[Black "Toniutti, Ezio"]
[WhiteFideId "30951992"]
[BlackFideId "113034"]
[WhiteElo "2665"]
[BlackElo "2215"]
[Result "0-1"]
[Round "11"]
[TimeControl "180+2"]
[Date "2023.03.28"]
[WhiteClock "0:00:03"]
[BlackClock "0:00:15"]

1. e4 {[%clk 0:03:00]}  e5 {[%clk 0:02:58]} 2. Nf3 {[%clk 0:02:59]}  Nc6 {[%clk 0:02:56]} 3. Bb5 {[%clk 0:02:59]}  a6 {[%clk 0:02:54]} 4. Bxc6 {[%clk 0:02:54]}  dxc6 {[%clk 0:02:55]} 5. O-O {[%clk 0:02:54]}  Bg4 {[%clk 0:02:55]} 6. h3 {[%clk 0:02:53]}  h5 {[%clk 0:02:55]} 7. d3 {[%clk 0:02:48]}  Qf6 {[%clk 0:02:52]} 8. Nbd2 {[%clk 0:02:48]}  g5 {[%clk 0:02:49]} 9. Re1 {[%clk 0:02:46]}  Be6 {[%clk 0:02:41]} 10. d4 {[%clk 0:02:27]}  g4 {[%clk 0:02:30]} 11. Nxe5 {[%clk 0:02:15]}  O-O-O {[%clk 0:02:30]} 12. c3 {[%clk 0:02:11]}  gxh3 {[%clk 0:02:26]} 13. Qf3 {[%clk 0:02:11]}  hxg2 {[%clk 0:02:22]} 14. Qxf6 {[%clk 0:02:07]}  Nxf6 {[%clk 0:02:20]} 15. Kxg2 {[%clk 0:02:07]}  Bd6 {[%clk 0:02:17]} 16. Ndc4 {[%clk 0:02:01]}  Rdg8+ {[%clk 0:02:14]} 17. Kh1 {[%clk 0:01:55]}  h4 {[%clk 0:02:03]} 18. Bd2 {[%clk 0:01:47]}  h3 {[%clk 0:02:00]} 19. Nxd6+ {[%clk 0:00:59]}  cxd6 {[%clk 0:01:57]} 20. Nd3 {[%clk 0:00:57]}  Rg2 {[%clk 0:01:44]} 21. b3 {[%clk 0:00:42]}  Bg4 {[%clk 0:01:30]} 22. Re3 {[%clk 0:00:35]}  Nxe4 {[%clk 0:00:54]} 23. Rxe4 {[%clk 0:00:31]}  Bf3 {[%clk 0:00:52]} 24. Rf4 {[%clk 0:00:23]}  Rg1+ {[%clk 0:00:48]} 25. Kh2 {[%clk 0:00:23]}  Rg2+ {[%clk 0:00:40]} 26. Kh1 {[%clk 0:00:23]}  Rxf2+ {[%clk 0:00:20]} 27. Rxf3 {[%clk 0:00:18]}  Rxf3 {[%clk 0:00:20]} 28. Ne1 {[%clk 0:00:15]}  Rf1+ {[%clk 0:00:19]} 29. Kh2 {[%clk 0:00:16]}  Rf2+ {[%clk 0:00:19]} 30. Kg3 {[%clk 0:00:12]}  Rxd2 {[%clk 0:00:18]} 31. Nf3 {[%clk 0:00:13]}  Rd3 {[%clk 0:00:18]} 32. Kf4 {[%clk 0:00:13]}  h2 {[%clk 0:00:17]} 33. Rh1 {[%clk 0:00:12]}  Rxc3 {[%clk 0:00:17]} 34. Nxh2 {[%clk 0:00:11]}  Rc2 {[%clk 0:00:17]} 35. Kg3 {[%clk 0:00:11]}  Rxa2 {[%clk 0:00:17]} 36. b4 {[%clk 0:00:11]}  Rhxh2 {[%clk 0:00:17]} 37. Re1 {[%clk 0:00:09]}  Rag2+ {[%clk 0:00:17]} 38. Kf4 {[%clk 0:00:10]}  Kc7 {[%clk 0:00:17]} 39. Re7+ {[%clk 0:00:09]}  Kb6 {[%clk 0:00:17]} 40. Rd7 {[%clk 0:00:10]}  Rf2+ {[%clk 0:00:16]} 41. Ke3 {[%clk 0:00:10]}  Re2+ {[%clk 0:00:16]} 42. Kd3 {[%clk 0:00:10]}  Rd2+ {[%clk 0:00:16]} 43. Kc3 {[%clk 0:00:11]}  d5 {[%clk 0:00:16]} 44. Rxf7 {[%clk 0:00:11]}  Rc2+ {[%clk 0:00:16]} 45. Kb3 {[%clk 0:00:11]}  Rc4 {[%clk 0:00:16]} 46. Ka4 {[%clk 0:00:11]}  Ra2+ {[%clk 0:00:15]} 47. Kb3 {[%clk 0:00:12]}  Ra1 {[%clk 0:00:16]} 48. Kb2 {[%clk 0:00:11]}  Ra4 {[%clk 0:00:16]} 49. Rh7 {[%clk 0:00:11]}  Raxb4+ {[%clk 0:00:16]} 50. Ka3 {[%clk 0:00:11]}  a5 {[%clk 0:00:15]} 51. Rh6 {[%clk 0:00:11]}  Rc3+ {[%clk 0:00:15]} 52. Ka2 {[%clk 0:00:11]}  Rxd4 {[%clk 0:00:14]} 53. Rh2 {[%clk 0:00:10]}  Rcd3 {[%clk 0:00:15]} 54. Rh5 {[%clk 0:00:10]}  Ka6 {[%clk 0:00:14]} 55. Kb2 {[%clk 0:00:09]}  Rb4+ {[%clk 0:00:14]} 56. Kc2 {[%clk 0:00:09]}  Rdd4 {[%clk 0:00:14]} 57. Kc3 {[%clk 0:00:09]}  Rdc4+ {[%clk 0:00:15]} 58. Kd3 {[%clk 0:00:10]}  a4 {[%clk 0:00:16]} 59. Rh8 {[%clk 0:00:10]}  Rb3+ {[%clk 0:00:16]} 60. Kd2 {[%clk 0:00:10]}  a3 {[%clk 0:00:17]} 61. Ra8+ {[%clk 0:00:10]}  Kb6 {[%clk 0:00:17]} 62. Kd1 {[%clk 0:00:09]}  Rb2 {[%clk 0:00:16]} 63. Rxa3 {[%clk 0:00:09]}  Rcb4 {[%clk 0:00:16]} 64. Kc1 {[%clk 0:00:08]}  d4 {[%clk 0:00:16]} 65. Rh3 {[%clk 0:00:08]}  c5 {[%clk 0:00:16]} 66. Rh6+ {[%clk 0:00:08]}  Kb5 {[%clk 0:00:16]} 67. Rh7 {[%clk 0:00:09]}  d3 {[%clk 0:00:15]} 68. Rh3 {[%clk 0:00:09]}  c4 {[%clk 0:00:15]} 69. Rh5+ {[%clk 0:00:09]}  Ka4 {[%clk 0:00:15]} 70. Rh8 {[%clk 0:00:09]}  Kb3 {[%clk 0:00:15]} 71. Rh3 {[%clk 0:00:09]}  Kc3 {[%clk 0:00:15]} 72. Kd1 {[%clk 0:00:04]}  Rd2+ {[%clk 0:00:14]} 73. Kc1 {[%clk 0:00:03]}  Rc2+ {[%clk 0:00:14]} 74. Kd1 {[%clk 0:00:03]}  Rb1# {[%clk 0:00:15]} 0-1


[Site "https://www.chess.com"]

[Event "Titled Tuesday Blitz March 28 Late 2023"]
[White "Vovk, Orest"]
[Black "Cuenca Jimenez, Jose Fernando"]
[WhiteFideId "14113490"]
[BlackFideId "2255570"]
[WhiteElo "2215"]
[BlackElo "2429"]
[Result "0-1"]
[Round "11"]
[TimeControl "180+2"]
[Date "2023.03.28"]
[WhiteClock "0:00:06"]
[BlackClock "0:00:07"]

1. h4 {[%clk 0:03:00]}  e6 {[%clk 0:02:57]} 2. h5 {[%clk 0:03:01]}  c5 {[%clk 0:02:56]} 3. d4 {[%clk 0:02:57]}  cxd4 {[%clk 0:02:56]} 4. Qxd4 {[%clk 0:02:57]}  Nc6 {[%clk 0:02:56]} 5. Qh4 {[%clk 0:02:56]}  Qxh4 {[%clk 0:02:51]} 6. Rxh4 {[%clk 0:02:56]}  d5 {[%clk 0:02:51]} 7. Nf3 {[%clk 0:02:53]}  Be7 {[%clk 0:02:46]} 8. Rh1 {[%clk 0:02:47]}  h6 {[%clk 0:02:36]} 9. c3 {[%clk 0:02:42]}  e5 {[%clk 0:02:31]} 10. Nbd2 {[%clk 0:02:35]}  Nf6 {[%clk 0:02:30]} 11. e3 {[%clk 0:02:25]}  Bg4 {[%clk 0:02:20]} 12. Be2 {[%clk 0:02:24]}  O-O {[%clk 0:01:47]} 13. Ng1 {[%clk 0:02:17]}  Be6 {[%clk 0:01:44]} 14. b3 {[%clk 0:02:05]}  d4 {[%clk 0:01:40]} 15. cxd4 {[%clk 0:02:00]}  exd4 {[%clk 0:01:40]} 16. Bb2 {[%clk 0:01:54]}  dxe3 {[%clk 0:01:37]} 17. fxe3 {[%clk 0:01:55]}  Nd5 {[%clk 0:01:27]} 18. Kf2 {[%clk 0:01:46]}  Nxe3 {[%clk 0:01:16]} 19. Kxe3 {[%clk 0:01:42]}  Bg5+ {[%clk 0:01:15]} 20. Kf2 {[%clk 0:01:41]}  Bxd2 {[%clk 0:01:15]} 21. Nf3 {[%clk 0:01:40]}  Ba5 {[%clk 0:01:12]} 22. Bc4 {[%clk 0:01:33]}  Bb6+ {[%clk 0:01:09]} 23. Kg3 {[%clk 0:01:32]}  Bxc4 {[%clk 0:01:06]} 24. bxc4 {[%clk 0:01:32]}  Rad8 {[%clk 0:01:07]} 25. Rh4 {[%clk 0:01:26]}  f6 {[%clk 0:00:53]} 26. Rg4 {[%clk 0:01:23]}  Rd3 {[%clk 0:00:49]} 27. Kh2 {[%clk 0:01:14]}  Kf7 {[%clk 0:00:29]} 28. Re1 {[%clk 0:01:07]}  Rdd8 {[%clk 0:00:22]} 29. Nh4 {[%clk 0:00:57]}  Bf2 {[%clk 0:00:20]} 30. Re2 {[%clk 0:00:51]}  Bxh4 {[%clk 0:00:20]} 31. Rxh4 {[%clk 0:00:52]}  Rfe8 {[%clk 0:00:20]} 32. Rf2 {[%clk 0:00:44]}  Re6 {[%clk 0:00:18]} 33. Ba3 {[%clk 0:00:32]}  Rd3 {[%clk 0:00:14]} 34. Bc1 {[%clk 0:00:18]}  Rd4 {[%clk 0:00:12]} 35. Rxd4 {[%clk 0:00:16]}  Nxd4 {[%clk 0:00:12]} 36. Rb2 {[%clk 0:00:16]}  b6 {[%clk 0:00:12]} 37. Bf4 {[%clk 0:00:13]}  Re4 {[%clk 0:00:07]} 38. Bb8 {[%clk 0:00:11]}  Nc6 {[%clk 0:00:07]} 39. Bd6 {[%clk 0:00:09]}  Rxc4 {[%clk 0:00:07]} 40. g3 {[%clk 0:00:07]}  Rd4 {[%clk 0:00:07]} 41. Bf4 {[%clk 0:00:07]}  Rd5 {[%clk 0:00:08]} 42. Rc2 {[%clk 0:00:07]}  Rxh5+ {[%clk 0:00:07]} 43. Kg2 {[%clk 0:00:07]}  Rc5 {[%clk 0:00:08]} 44. Rd2 {[%clk 0:00:07]}  Ne5 {[%clk 0:00:05]} 45. Rd8 {[%clk 0:00:07]}  Rc7 {[%clk 0:00:04]} 46. Rd5 {[%clk 0:00:05]}  Re7 {[%clk 0:00:04]} 47. Rd8 {[%clk 0:00:05]}  Ke6 {[%clk 0:00:04]} 48. Ra8 {[%clk 0:00:04]}  g5 {[%clk 0:00:04]} 49. Bc1 {[%clk 0:00:05]}  Kf5 {[%clk 0:00:04]} 50. Ba3 {[%clk 0:00:05]}  Rd7 {[%clk 0:00:04]} 51. Rh8 {[%clk 0:00:05]}  Kg6 {[%clk 0:00:04]} 52. Rg8+ {[%clk 0:00:03]}  Kh7 {[%clk 0:00:03]} 53. Rf8 {[%clk 0:00:03]}  Ng4 {[%clk 0:00:03]} 54. Ra8 {[%clk 0:00:02]}  h5 {[%clk 0:00:03]} 55. Kf3 {[%clk 0:00:02]}  Rd3+ {[%clk 0:00:02]} 56. Ke4 {[%clk 0:00:02]}  Rxa3 {[%clk 0:00:03]} 57. Kf5 {[%clk 0:00:02]}  Rf3+ {[%clk 0:00:03]} 58. Ke6 {[%clk 0:00:03]}  Kg7 {[%clk 0:00:04]} 59. Rxa7+ {[%clk 0:00:02]}  Kg6 {[%clk 0:00:05]} 60. Ra8 {[%clk 0:00:02]}  Re3+ {[%clk 0:00:05]} 61. Kd5 {[%clk 0:00:03]}  Re5+ {[%clk 0:00:05]} 62. Kd6 {[%clk 0:00:03]}  Ra5 {[%clk 0:00:05]} 63. Rb8 {[%clk 0:00:01]}  Rxa2 {[%clk 0:00:05]} 64. Rxb6 {[%clk 0:00:01]}  Ra3 {[%clk 0:00:06]} 65. Ke7 {[%clk 0:00:01]}  Rxg3 {[%clk 0:00:06]} 66. Kf8 {[%clk 0:00:02]}  Re3 {[%clk 0:00:06]} 67. Rb7 {[%clk 0:00:02]}  h4 {[%clk 0:00:07]} 68. Rb4 {[%clk 0:00:02]}  Kh5 {[%clk 0:00:06]} 69. Rb7 {[%clk 0:00:02]}  Kg6 {[%clk 0:00:05]} 70. Rg7+ {[%clk 0:00:02]}  Kf5 {[%clk 0:00:05]} 71. Rb7 {[%clk 0:00:02]}  h3 {[%clk 0:00:06]} 72. Kg7 {[%clk 0:00:03]}  h2 {[%clk 0:00:05]} 73. Rb5+ {[%clk 0:00:03]}  Ne5 {[%clk 0:00:05]} 74. Rb1 {[%clk 0:00:04]}  Rh3 {[%clk 0:00:06]} 75. Rf1+ {[%clk 0:00:04]}  Kg4 {[%clk 0:00:06]} 76. Rh1 {[%clk 0:00:05]}  Nf3 {[%clk 0:00:06]} 77. Kxf6 {[%clk 0:00:05]}  Kg3 {[%clk 0:00:06]} 78. Kf5 {[%clk 0:00:05]}  Kg2 {[%clk 0:00:06]} 79. Rb1 {[%clk 0:00:06]}  h1=Q {[%clk 0:00:07]} 80. Rb2+ {[%clk 0:00:07]}  Kg3 {[%clk 0:00:07]} 81. Rb3 {[%clk 0:00:07]}  Qd1 {[%clk 0:00:07]} 82. Rb5 {[%clk 0:00:06]}  Qd3+ {[%clk 0:00:06]} 83. Kf6 {[%clk 0:00:06]}  Qxb5 {[%clk 0:00:07]} 0-1


[Site "https://www.chess.com"]

[Event "Titled Tuesday Blitz March 28 Late 2023"]
[White "Vafin, Ayrat"]
[Black "Di Berardino, Diego Rafael"]
[WhiteFideId "4146530"]
[BlackFideId "2105446"]
[WhiteElo "2317"]
[BlackElo "2432"]
[Result "0-1"]
[Round "11"]
[TimeControl "180+2"]
[Date "2023.03.28"]
[WhiteClock "0:00:02"]
[BlackClock "0:00:06"]

1. Nf3 {[%clk 0:03:00]}  c5 {[%clk 0:02:57]} 2. g3 {[%clk 0:03:00]}  Nc6 {[%clk 0:02:56]} 3. d4 {[%clk 0:03:00]}  cxd4 {[%clk 0:02:56]} 4. Nxd4 {[%clk 0:03:01]}  g6 {[%clk 0:02:57]} 5. Bg2 {[%clk 0:03:00]}  Bg7 {[%clk 0:02:57]} 6. Nxc6 {[%clk 0:03:01]}  bxc6 {[%clk 0:02:57]} 7. c4 {[%clk 0:03:00]}  Nf6 {[%clk 0:02:58]} 8. Nc3 {[%clk 0:03:00]}  O-O {[%clk 0:02:58]} 9. O-O {[%clk 0:03:00]}  Rb8 {[%clk 0:02:57]} 10. b3 {[%clk 0:02:58]}  Bb7 {[%clk 0:02:22]} 11. Bb2 {[%clk 0:02:54]}  d5 {[%clk 0:02:20]} 12. cxd5 {[%clk 0:02:38]}  cxd5 {[%clk 0:02:18]} 13. e3 {[%clk 0:02:37]}  Qa5 {[%clk 0:02:15]} 14. Qd2 {[%clk 0:02:28]}  Rfd8 {[%clk 0:02:09]} 15. Rfd1 {[%clk 0:02:27]}  Qa6 {[%clk 0:01:32]} 16. Na4 {[%clk 0:02:21]}  Qd6 {[%clk 0:01:10]} 17. Rac1 {[%clk 0:02:13]}  Rbc8 {[%clk 0:01:07]} 18. Bd4 {[%clk 0:02:04]}  Rxc1 {[%clk 0:00:55]} 19. Rxc1 {[%clk 0:02:03]}  Ne4 {[%clk 0:00:55]} 20. Qb2 {[%clk 0:02:00]}  e5 {[%clk 0:00:41]} 21. Bxa7 {[%clk 0:01:58]}  d4 {[%clk 0:00:41]} 22. Bb6 {[%clk 0:01:40]}  Re8 {[%clk 0:00:23]} 23. Rd1 {[%clk 0:01:15]}  Bc6 {[%clk 0:00:09]} 24. exd4 {[%clk 0:01:04]}  exd4 {[%clk 0:00:09]} 25. Bxd4 {[%clk 0:00:17]}  Rd8 {[%clk 0:00:09]} 26. Qc2 {[%clk 0:00:08]}  Bxd4 {[%clk 0:00:08]} 27. Bxe4 {[%clk 0:00:08]}  Bxe4 {[%clk 0:00:07]} 28. Qxe4 {[%clk 0:00:08]}  Bxf2+ {[%clk 0:00:07]} 29. Kxf2 {[%clk 0:00:07]}  Qxd1 {[%clk 0:00:08]} 30. Nc3 {[%clk 0:00:07]}  Rd2+ {[%clk 0:00:08]} 31. Ne2 {[%clk 0:00:08]}  Qc2 {[%clk 0:00:07]} 32. Qe8+ {[%clk 0:00:08]}  Kg7 {[%clk 0:00:07]} 33. Qe5+ {[%clk 0:00:08]}  Kf8 {[%clk 0:00:08]} 34. Qh8+ {[%clk 0:00:06]}  Ke7 {[%clk 0:00:08]} 35. Qe5+ {[%clk 0:00:07]}  Kd7 {[%clk 0:00:09]} 36. Qb5+ {[%clk 0:00:07]}  Qc6 {[%clk 0:00:08]} 37. Qxc6+ {[%clk 0:00:02]}  Kxc6 {[%clk 0:00:08]} 38. a4 {[%clk 0:00:02]}  Rb2 {[%clk 0:00:08]} 39. Ke1 {[%clk 0:00:02]}  Kc5 {[%clk 0:00:08]} 40. Nc1 {[%clk 0:00:02]}  Kd4 {[%clk 0:00:07]} 41. Kd1 {[%clk 0:00:02]}  Ke3 {[%clk 0:00:06]} 0-1


[Site "https://www.chess.com"]

[Event "Titled Tuesday Blitz March 28 Late 2023"]
[White "Cori T., Deysi"]
[Black "Baskakov, Egor"]
[WhiteFideId "3801934"]
[BlackFideId "24197866"]
[WhiteElo "2292"]
[BlackElo "2212"]
[Result "0-1"]
[Round "11"]
[TimeControl "180+2"]
[Date "2023.03.28"]
[WhiteClock "0:00:06"]
[BlackClock "0:00:38"]

1. Nf3 {[%clk 0:03:00]}  Nf6 {[%clk 0:02:59]} 2. d4 {[%clk 0:03:01]}  e6 {[%clk 0:03:00]} 3. e3 {[%clk 0:03:01]}  d5 {[%clk 0:03:01]} 4. Nbd2 {[%clk 0:03:01]}  Bd6 {[%clk 0:03:01]} 5. Bd3 {[%clk 0:03:01]}  O-O {[%clk 0:03:02]} 6. O-O {[%clk 0:03:01]}  c5 {[%clk 0:03:03]} 7. dxc5 {[%clk 0:03:01]}  Bxc5 {[%clk 0:03:03]} 8. c4 {[%clk 0:03:02]}  Nc6 {[%clk 0:03:02]} 9. a3 {[%clk 0:03:02]}  e5 {[%clk 0:03:02]} 10. cxd5 {[%clk 0:03:02]}  Qxd5 {[%clk 0:03:03]} 11. Qc2 {[%clk 0:03:01]}  Bb6 {[%clk 0:03:00]} 12. Ne4 {[%clk 0:03:00]}  Ng4 {[%clk 0:02:34]} 13. Nc3 {[%clk 0:02:49]}  Qe6 {[%clk 0:02:34]} 14. Bxh7+ {[%clk 0:02:48]}  Kh8 {[%clk 0:02:34]} 15. Be4 {[%clk 0:02:48]}  f5 {[%clk 0:02:33]} 16. Bd5 {[%clk 0:02:48]}  Qg6 {[%clk 0:02:29]} 17. Ne2 {[%clk 0:02:37]}  e4 {[%clk 0:02:25]} 18. Nh4 {[%clk 0:01:28]}  Qd6 {[%clk 0:02:11]} 19. Nf4 {[%clk 0:01:25]}  Nce5 {[%clk 0:01:59]} 20. Rd1 {[%clk 0:01:13]}  Qf6 {[%clk 0:01:49]} 21. g3 {[%clk 0:01:04]}  g5 {[%clk 0:01:48]} 22. h3 {[%clk 0:00:32]}  gxf4 {[%clk 0:01:17]} 23. hxg4 {[%clk 0:00:31]}  fxg3 {[%clk 0:01:15]} 24. Qc3 {[%clk 0:00:22]}  gxf2+ {[%clk 0:01:13]} 25. Kg2 {[%clk 0:00:22]}  Kg7 {[%clk 0:00:53]} 26. Kf1 {[%clk 0:00:07]}  Nxg4 {[%clk 0:00:43]} 27. Bd2 {[%clk 0:00:07]}  Bd7 {[%clk 0:00:37]} 28. Qxf6+ {[%clk 0:00:05]}  Kxf6 {[%clk 0:00:38]} 29. Bc3+ {[%clk 0:00:05]}  Kg5 {[%clk 0:00:39]} 30. Ng2 {[%clk 0:00:06]}  Bb5+ {[%clk 0:00:38]} 0-1


[Site "https://www.chess.com"]

[Event "Titled Tuesday Blitz March 28 Late 2023"]
[White "Gokerkan, Cem Kaan"]
[Black "Jocev, Milan"]
[WhiteFideId "6336760"]
[BlackFideId "900680"]
[WhiteElo "2365"]
[BlackElo "2323"]
[Result "0-1"]
[Round "11"]
[TimeControl "180+2"]
[Date "2023.03.28"]
[WhiteClock "0:00:13"]
[BlackClock "0:01:08"]

1. e4 {[%clk 0:03:00]}  c6 {[%clk 0:02:57]} 2. d4 {[%clk 0:03:00]}  d5 {[%clk 0:02:58]} 3. e5 {[%clk 0:03:00]}  Bf5 {[%clk 0:02:57]} 4. Nd2 {[%clk 0:02:59]}  e6 {[%clk 0:02:53]} 5. Nb3 {[%clk 0:02:59]}  a5 {[%clk 0:02:51]} 6. a4 {[%clk 0:02:59]}  h5 {[%clk 0:02:50]} 7. Nf3 {[%clk 0:02:59]}  h4 {[%clk 0:02:49]} 8. h3 {[%clk 0:02:59]}  Be7 {[%clk 0:02:49]} 9. Bd3 {[%clk 0:02:58]}  Bxd3 {[%clk 0:02:44]} 10. Qxd3 {[%clk 0:02:59]}  Nd7 {[%clk 0:02:44]} 11. O-O {[%clk 0:02:59]}  Nb6 {[%clk 0:02:44]} 12. Bf4 {[%clk 0:02:37]}  Nc4 {[%clk 0:02:41]} 13. Rab1 {[%clk 0:02:37]}  Nh6 {[%clk 0:02:41]} 14. Bxh6 {[%clk 0:02:37]}  Rxh6 {[%clk 0:02:42]} 15. Nbd2 {[%clk 0:02:37]}  Nb6 {[%clk 0:02:41]} 16. b3 {[%clk 0:02:36]}  Kf8 {[%clk 0:02:26]} 17. Nh2 {[%clk 0:02:30]}  Kg8 {[%clk 0:02:23]} 18. Ng4 {[%clk 0:02:26]}  Rh5 {[%clk 0:02:23]} 19. f4 {[%clk 0:02:07]}  g6 {[%clk 0:02:22]} 20. Nf3 {[%clk 0:02:02]}  Ra7 {[%clk 0:02:18]} 21. Rbd1 {[%clk 0:02:00]}  Na8 {[%clk 0:02:18]} 22. Ne3 {[%clk 0:01:54]}  Nc7 {[%clk 0:02:16]} 23. c4 {[%clk 0:01:53]}  Ra6 {[%clk 0:02:12]} 24. Rc1 {[%clk 0:01:44]}  Rb6 {[%clk 0:02:11]} 25. c5 {[%clk 0:01:44]}  Ra6 {[%clk 0:02:11]} 26. Rc2 {[%clk 0:01:38]}  Ra8 {[%clk 0:02:10]} 27. Rb1 {[%clk 0:01:37]}  Na6 {[%clk 0:02:09]} 28. Rf2 {[%clk 0:01:35]}  b6 {[%clk 0:02:04]} 29. cxb6 {[%clk 0:01:29]}  Qxb6 {[%clk 0:02:05]} 30. Kh2 {[%clk 0:01:22]}  Nb4 {[%clk 0:02:03]} 31. Qe2 {[%clk 0:01:20]}  c5 {[%clk 0:02:03]} 32. Rd1 {[%clk 0:00:45]}  Rc8 {[%clk 0:02:01]} 33. Ng4 {[%clk 0:00:44]}  c4 {[%clk 0:01:59]} 34. bxc4 {[%clk 0:00:45]}  dxc4 {[%clk 0:02:00]} 35. Rc1 {[%clk 0:00:38]}  c3 {[%clk 0:01:59]} 36. Qe4 {[%clk 0:00:33]}  Rf5 {[%clk 0:01:54]} 37. Ne3 {[%clk 0:00:29]}  Qc7 {[%clk 0:01:38]} 38. Nxf5 {[%clk 0:00:29]}  gxf5 {[%clk 0:01:39]} 39. Qe2 {[%clk 0:00:27]}  Qc4 {[%clk 0:01:27]} 40. Qe1 {[%clk 0:00:22]}  Nd3 {[%clk 0:01:25]} 41. Qf1 {[%clk 0:00:23]}  Nxc1 {[%clk 0:01:22]} 42. Qxc1 {[%clk 0:00:23]}  c2 {[%clk 0:01:16]} 43. Ne1 {[%clk 0:00:23]}  Qxd4 {[%clk 0:01:15]} 44. Rxc2 {[%clk 0:00:22]}  Rxc2 {[%clk 0:01:14]} 45. Nxc2 {[%clk 0:00:23]}  Qxa4 {[%clk 0:01:13]} 46. Qb2 {[%clk 0:00:16]}  Qxf4+ {[%clk 0:01:12]} 47. Kh1 {[%clk 0:00:15]}  Qf1+ {[%clk 0:01:11]} 48. Kh2 {[%clk 0:00:15]}  Bc5 {[%clk 0:01:09]} 49. Nd4 {[%clk 0:00:13]}  Qf4+ {[%clk 0:01:08]} 0-1


[Site "https://www.chess.com"]

[Event "Titled Tuesday Blitz March 28 Late 2023"]
[White "Oro, Faustino"]
[Black "Ibadov, Dashgyn"]
[WhiteFideId "20000197"]
[BlackFideId "24107514"]
[WhiteElo "1984"]
[BlackElo "2208"]
[Result "0-1"]
[Round "11"]
[TimeControl "180+2"]
[Date "2023.03.28"]
[WhiteClock "0:00:04"]
[BlackClock "0:00:16"]

1. e4 {[%clk 0:03:00]}  c5 {[%clk 0:02:59]} 2. Nf3 {[%clk 0:03:00]}  Nc6 {[%clk 0:03:00]} 3. d4 {[%clk 0:02:59]}  cxd4 {[%clk 0:03:01]} 4. Nxd4 {[%clk 0:03:00]}  Nf6 {[%clk 0:03:02]} 5. Nc3 {[%clk 0:03:00]}  e5 {[%clk 0:03:02]} 6. Ndb5 {[%clk 0:03:00]}  d6 {[%clk 0:03:03]} 7. Bg5 {[%clk 0:03:00]}  a6 {[%clk 0:03:04]} 8. Na3 {[%clk 0:03:00]}  b5 {[%clk 0:03:04]} 9. Bxf6 {[%clk 0:03:00]}  gxf6 {[%clk 0:03:04]} 10. Nd5 {[%clk 0:03:00]}  f5 {[%clk 0:03:03]} 11. exf5 {[%clk 0:02:59]}  Bxf5 {[%clk 0:03:02]} 12. Bd3 {[%clk 0:02:59]}  Be6 {[%clk 0:02:54]} 13. Be4 {[%clk 0:02:52]}  Bg7 {[%clk 0:02:42]} 14. Nf6+ {[%clk 0:02:23]}  Bxf6 {[%clk 0:02:40]} 15. Bxc6+ {[%clk 0:02:23]}  Ke7 {[%clk 0:02:41]} 16. Bxa8 {[%clk 0:02:23]}  Qxa8 {[%clk 0:02:42]} 17. f3 {[%clk 0:01:50]}  Rg8 {[%clk 0:02:30]} 18. Qe2 {[%clk 0:01:48]}  Bg5 {[%clk 0:02:21]} 19. O-O {[%clk 0:01:39]}  Bf4 {[%clk 0:02:19]} 20. Kh1 {[%clk 0:01:35]}  Qf8 {[%clk 0:02:12]} 21. g3 {[%clk 0:01:26]}  Bg5 {[%clk 0:02:13]} 22. Rad1 {[%clk 0:01:21]}  Qh6 {[%clk 0:02:08]} 23. Qd3 {[%clk 0:01:17]}  d5 {[%clk 0:02:08]} 24. c3 {[%clk 0:01:05]}  Be3 {[%clk 0:02:05]} 25. Rde1 {[%clk 0:01:00]}  Bb6 {[%clk 0:01:53]} 26. g4 {[%clk 0:00:43]}  Qf4 {[%clk 0:01:49]} 27. Qe2 {[%clk 0:00:42]}  Bc7 {[%clk 0:01:33]} 28. Nc2 {[%clk 0:00:41]}  h5 {[%clk 0:01:32]} 29. Ne3 {[%clk 0:00:40]}  Rh8 {[%clk 0:01:21]} 30. Qf2 {[%clk 0:00:28]}  hxg4 {[%clk 0:01:03]} 31. fxg4 {[%clk 0:00:29]}  Qg5 {[%clk 0:00:53]} 32. Nf5+ {[%clk 0:00:29]}  Kd7 {[%clk 0:00:47]} 33. Qg2 {[%clk 0:00:14]}  e4 {[%clk 0:00:46]} 34. h3 {[%clk 0:00:14]}  Be5 {[%clk 0:00:35]} 35. Rd1 {[%clk 0:00:14]}  Kc7 {[%clk 0:00:31]} 36. Rde1 {[%clk 0:00:08]}  Kb7 {[%clk 0:00:26]} 37. Ne3 {[%clk 0:00:06]}  Qh4 {[%clk 0:00:21]} 38. Rf2 {[%clk 0:00:05]}  Bg3 {[%clk 0:00:18]} 39. Ref1 {[%clk 0:00:05]}  Bxf2 {[%clk 0:00:17]} 40. Rxf2 {[%clk 0:00:06]}  Qxh3+ {[%clk 0:00:18]} 41. Qh2 {[%clk 0:00:04]}  Qxe3 {[%clk 0:00:16]} 0-1


[Site "https://www.chess.com"]

[Event "Titled Tuesday Blitz March 28 Late 2023"]
[White "Dudzinski, Pawel"]
[Black "Rytenko, Vsevolod"]
[WhiteFideId "1117890"]
[BlackFideId "14133040"]
[WhiteElo "2099"]
[BlackElo "2262"]
[Result "0-1"]
[Round "11"]
[TimeControl "180+2"]
[Date "2023.03.28"]
[WhiteClock "0:00:07"]
[BlackClock "0:00:15"]

1. e4 {[%clk 0:03:00]}  c6 {[%clk 0:02:58]} 2. d4 {[%clk 0:03:00]}  d5 {[%clk 0:02:58]} 3. exd5 {[%clk 0:03:01]}  cxd5 {[%clk 0:02:57]} 4. Bd3 {[%clk 0:03:02]}  Nc6 {[%clk 0:02:57]} 5. c3 {[%clk 0:03:01]}  Nf6 {[%clk 0:02:58]} 6. h3 {[%clk 0:03:02]}  e5 {[%clk 0:02:58]} 7. dxe5 {[%clk 0:03:03]}  Nxe5 {[%clk 0:02:59]} 8. Nf3 {[%clk 0:03:03]}  Nxd3+ {[%clk 0:02:57]} 9. Qxd3 {[%clk 0:03:04]}  Be7 {[%clk 0:02:57]} 10. O-O {[%clk 0:03:04]}  O-O {[%clk 0:02:58]} 11. Re1 {[%clk 0:03:04]}  Bd7 {[%clk 0:02:52]} 12. Bg5 {[%clk 0:02:57]}  Bc6 {[%clk 0:02:45]} 13. Bxf6 {[%clk 0:02:43]}  Bxf6 {[%clk 0:02:44]} 14. Nd4 {[%clk 0:02:43]}  Rc8 {[%clk 0:02:36]} 15. Nd2 {[%clk 0:02:43]}  Re8 {[%clk 0:02:32]} 16. Kf1 {[%clk 0:02:00]}  Qd6 {[%clk 0:02:29]} 17. N2f3 {[%clk 0:01:31]}  Bd7 {[%clk 0:02:16]} 18. Rxe8+ {[%clk 0:01:25]}  Rxe8 {[%clk 0:02:15]} 19. Re1 {[%clk 0:01:25]}  Rxe1+ {[%clk 0:02:08]} 20. Kxe1 {[%clk 0:01:26]}  a6 {[%clk 0:02:07]} 21. Qe3 {[%clk 0:01:21]}  h6 {[%clk 0:01:55]} 22. Ke2 {[%clk 0:01:19]}  b5 {[%clk 0:01:50]} 23. Nb3 {[%clk 0:01:12]}  Bf5 {[%clk 0:01:44]} 24. Qe8+ {[%clk 0:00:58]}  Kh7 {[%clk 0:01:25]} 25. Qxf7 {[%clk 0:00:48]}  b4 {[%clk 0:01:25]} 26. Nbd4 {[%clk 0:00:41]}  Be4 {[%clk 0:01:20]} 27. Qe6 {[%clk 0:00:34]}  Qxe6 {[%clk 0:01:18]} 28. Nxe6 {[%clk 0:00:33]}  bxc3 {[%clk 0:01:19]} 29. bxc3 {[%clk 0:00:33]}  Bxc3 {[%clk 0:01:19]} 30. Nc5 {[%clk 0:00:30]}  a5 {[%clk 0:00:56]} 31. Nxe4 {[%clk 0:00:27]}  dxe4 {[%clk 0:00:56]} 32. Nd2 {[%clk 0:00:27]}  Bxd2 {[%clk 0:00:38]} 33. Kxd2 {[%clk 0:00:28]}  Kg6 {[%clk 0:00:38]} 34. Ke3 {[%clk 0:00:29]}  Kf5 {[%clk 0:00:38]} 35. Kd4 {[%clk 0:00:27]}  Kf4 {[%clk 0:00:36]} 36. a4 {[%clk 0:00:27]}  g5 {[%clk 0:00:20]} 37. Kc5 {[%clk 0:00:11]}  h5 {[%clk 0:00:16]} 38. Kb5 {[%clk 0:00:10]}  g4 {[%clk 0:00:16]} 39. hxg4 {[%clk 0:00:10]}  hxg4 {[%clk 0:00:16]} 40. Kxa5 {[%clk 0:00:08]}  g3 {[%clk 0:00:17]} 41. fxg3+ {[%clk 0:00:07]}  Kxg3 {[%clk 0:00:17]} 42. Kb6 {[%clk 0:00:06]}  e3 {[%clk 0:00:18]} 43. a5 {[%clk 0:00:07]}  e2 {[%clk 0:00:19]} 44. a6 {[%clk 0:00:07]}  e1=Q {[%clk 0:00:20]} 45. Kb7 {[%clk 0:00:06]}  Qe4+ {[%clk 0:00:19]} 46. Kb8 {[%clk 0:00:06]}  Qb4+ {[%clk 0:00:17]} 47. Kc7 {[%clk 0:00:06]}  Qc5+ {[%clk 0:00:18]} 48. Kb7 {[%clk 0:00:07]}  Qb5+ {[%clk 0:00:18]} 49. Ka7 {[%clk 0:00:07]}  Kxg2 {[%clk 0:00:15]} 0-1


[Site "https://www.chess.com"]